Cogmind - Beta 11 X8 @@@ ROGUE MODE // 2021.11.12 @ 12:08:14 Player: Runia Result: Destroyed by 8R-AWN with 8R-AWN's Boregun Performance ------------- Evolutions (0) 0 Regions Visited (3) 600 Robots Destroyed (34) 170 Value Destroyed (843) 843 Prototype IDs (26) 520 Alien Tech Used (0) 0 Bonus (321) 321 TOTAL SCORE: 2454 Bonus ------- Follower Combat Kills 21 Aligned with FarCom 300 Cogmind --------- Core Integrity 0/250 Matter 191/300 Energy 250/250 System Corruption 2% Temperature Warm (168) Movement Treading (160) Location -10/Exiles Parts ------- > --- POWER (1) -------- Ion Engine > --- PROPULSION (2) --- Light Treads Light Treads > --- UTILITY (2) ------ Large Storage Unit Improved Armor Integrity Analyzer > --- WEAPON (2) ------- Light Assault Rifle Light Assault Rifle > --- INVENTORY (15) --- Light Nuclear Core High-capacity Matter Pod (200) High-capacity Matter Pod (200) Weapon Shielding Particle Gun Grenade Launcher Grenade Launcher Field Lobotomy Kit (2) Peak State ------------ > --- POWER ------------ Ion Engine > --- PROPULSION ------- Light Treads Light Treads > --- UTILITY ---------- Improved Heat Sink Large Storage Unit > --- WEAPON ----------- Assault Rifle Field Lobotomy Kit > --- INVENTORY -------- Ion Engine Light Nuclear Core Light Treads High-capacity Matter Pod High-capacity Matter Pod Weapon Shielding Particle Gun Assault Rifle Light Assault Rifle Light Assault Rifle Grenade Launcher Grenade Launcher [Rating: 19] Favorites ----------- Power Ion Engine Engine Ion Engine Propulsion Light Treads Treads Light Treads Leg Aluminum Leg Wheel Wheel Utility Large Storage Unit Device Improved Heat Sink Storage Large Storage Unit Processor Improved Armor Integrity Analyzer Protection Utility Shielding Weapon Assault Rifle Energy Gun Small Laser Ballistic Gun Assault Rifle Launcher Grenade Launcher Special Weapon Field Lobotomy Kit Build | -11 -10 -10 -10 ------- Run | Scr Mat Min Exi Slots Evolved . | . . . . Power . | . . . . Propulsion . | . . . . Utility . | . . . . Weapon . | . . . . Parts Attached 34 | 2 21 3 8 Power 3 | . 2 . 1 Engine 3 | . 2 . 1 Core . | . . . . Reactor . | . . . . Propulsion 8 | 2 5 . 1 Treads 7 | 2 4 . 1 Leg . | . . . . Wheel 1 | . 1 . . Hover . | . . . . Flight . | . . . . Utility 7 | . 4 1 2 Device 2 | . 1 1 . Storage 2 | . 2 . . Processor 1 | . . . 1 Hackware . | . . . . Protection 2 | . 1 . 1 Artifact . | . . . . Weapon 16 | . 10 2 4 Energy Gun 1 | . 1 . . Energy Cannon . | . . . . Ballistic Gun 10 | . 6 1 3 Ballistic Cannon . | . . . . Launcher 4 | . 3 1 . Special Weapon 1 | . . . 1 Impact Weapon . | . . . . Slashing Weapon . | . . . . Piercing Weapon . | . . . . Special Melee Weapon . | . . . . Unidentified Prototypes . | . . . . Parts Lost 11 | . 5 1 5 Power 2 | . 1 . 1 Propulsion 3 | . 2 . 1 Utility 2 | . . 1 1 Weapon 4 | . 2 . 2 Highest Loss Streak 3 | . 3 1 2 Average Slot Usage (%) 96 | . 92 99 97 Engine 13 | . 13 14 13 Treads 26 | . 24 28 26 Wheel 1 | . 2 . . Device 11 | . 7 13 12 Storage 14 | . 14 14 14 Energy Gun 4 | . 11 . . Ballistic Gun 21 | . 16 24 25 Launcher 1 | . . 3 . Naked Turns . | . . . . Heaviest Build 36 | 13 29 31 36 Greatest Support 40 | 40 40 40 40 Greatest Overweight (x) 1 | . 1 . 1 Average Overweight (x) . | . . . . Largest Inventory Capacity 15 | 8 15 15 15 Average Capacity 13 | 8 10 15 15 Most Carried 13 | 5 8 9 13 Average Carried 7 | 3 5 7 10 Final Capacity 15 | 8 15 15 15 Final Carried 9 | 2 5 9 8 Class Distribution -------------------- 100% | Mutant Dominant Class ---------------- Mutant | -10/Materials Mutant | -10/Mines Mutant | -10/Exiles Resources | -11 -10 -10 -10 ----------- Run | Scr Mat Min Exi Matter Collected 723 | 200 298 225 . Remotely . | . . . . Salvage Created 1038 | . 874 164 . Parts 77 | . 66 11 . Haulers Intercepted 1 | . 1 . . Recyclers Shooed 1 | . 1 . . Parts Field Recycled . | . . . . Retrieved Matter . | . . . . Parts Self-Destructed . | . . . . Prevented . | . . . . Kills | -11 -10 -10 -10 ------- Run | Scr Mat Min Exi Combat Hostiles Destroyed 27 | . 23 4 . Guns 16 | . 15 1 . AOE 11 | . 8 3 . Classes Destroyed 6 | . 6 . . Builder 3 | . 3 . . Hauler 1 | . 1 . . Recycler 2 | . 1 1 . Watcher 1 | . 1 . . Swarmer 9 | . 6 3 . Grunt 18 | . 17 1 . Best Kill Streak 6 | . 6 3 . Combat Bots Only 6 | . 6 3 . Max Kills in Single Turn 4 | . 4 3 . Gunslinging . | . . . . Exploded 4 | . 4 3 . Melee . | . . . . Uniques/NPCs Destroyed 2 | . . . 2 EX-DEC (-10/Exiles) EX-HEX (-10/Exiles) Combat | -11 -10 -10 -10 -------- Run | Scr Mat Min Exi Damage Taken 1942 | . 1148 154 640 Core 256 | . 124 18 114 Absorbed by Shields . | . . . . Core Remaining (%) 100 | 100 . . . Volleys Fired 106 | . 75 15 16 Largest 2 | . 2 2 2 Hottest 60 | . 60 40 40 Shots Fired 196 | . 140 29 27 Gun 183 | . 131 28 24 Cannon . | . . . . Launcher 10 | . 9 1 . Special 3 | . . . 3 Kinetic 131 | . 79 28 24 Thermal 52 | . 52 . . Explosive 10 | . 9 1 . Electromagnetic . | . . . . Robot Hit Streak 9 | . 8 8 9 Robot Miss Streak 5 | . 5 1 2 Penetration Max . | . . . . Secondary Targets . | . . . . Shots Hit Robots 129 | . 85 22 22 Core Hits 62 | . 47 10 5 Critical Kills 2 | . 2 . . Critical Parts Destroyed 1 | . . 1 . Critical Strikes 3 | . 2 1 . Destroy 3 | . 2 1 . Melee Attacks . | . . . . Impact . | . . . . Slashing . | . . . . Piercing . | . . . . Sneak Attacks . | . . . . Combat Hostiles . | . . . . Follow-up Attacks . | . . . . Damage Inflicted 2354 | . 1771 357 226 Guns 1295 | . 839 230 226 Cannons . | . . . . Explosions 1044 | . 932 112 . Melee . | . . . . Ramming 15 | . . 15 . Kinetic 929 | . 473 230 226 Thermal 710 | . 710 . . Explosive 700 | . 588 112 . Electromagnetic . | . . . . Impact . | . . . . Slashing . | . . . . Piercing . | . . . . Highest Corruption 2 | . . . 2 Average Corruption 1 | . . . 1 Corruption Purged . | . . . . Effects 3 | . . . 3 Message Errors 1 | . . . 1 Heat Flow Errors 1 | . . . 1 Data Loss (minor) 1 | . . . 1 Overload Shots . | . . . . Overflow Damage 95 | . 95 . . Projectiles . | . . . . Explosions 95 | . 95 . . Melee . | . . . . Knockbacks . | . . . . Impact . | . . . . Kinetic . | . . . . Secondary . | . . . . Self-Inflicted Damage 140 | . 114 26 . Shots 5 | . 4 1 . Rammed 2 | . . 2 . Targets Rammed 2 | . . 2 . Kicked . | . . . . Crushed . | . . . . Highest Temperature 168 | . 58 18 168 Average Temperature 21 | . 21 8 168 Received Heat Transfer 480 | . 423 57 . Siege Activations . | . . . . Robots Corrupted . | . . . . Combat Hostiles . | . . . . Parts Fried . | . . . . Impact Corruptions . | . . . . Robots Melted . | . . . . Combat Hostiles . | . . . . Parts Melted 3 | . 3 . . Heat Transferred 1000 | . 1000 . . Parts Sabotaged . | . . . . Parts Stolen . | . . . . Parts Stripped . | . . . . Power Chain Reactions . | . . . . Missiles Intercepted . | . . . . Alert | -11 -10 -10 -10 ------- Run | Scr Mat Min Exi Peak Influence 358 | . 358 254 . Initial 139 | . . 139 . Average 168 | . 206 128 . Maximum Alert Level 1 | . 1 1 . Low Security (%) 54 | 100 48 60 . Level 1 45 | . 51 39 . Level 2 . | . . . . Level 3 . | . . . . Level 4 . | . . . . Level 5 . | . . . . High Security . | . . . . Max Security . | . . . . Squads Dispatched 6 | . 6 . . Investigation 4 | . 4 . . Extermination . | . . . . Reinforcement 2 | . 2 . . Assault . | . . . . Garrison . | . . . . Intercept . | . . . . Construction Impeded . | . . . . Haulers Reinforced . | . . . . Active Scanning Responses . | . . . . Cargo Convoy Interrupts . | . . . . Stealth | -11 -10 -10 -10 --------- Run | Scr Mat Min Exi Distress Signals 2 | . 2 . . Communications Jammed . | . . . . Distress Signals . | . . . . Times Spotted 51 | . 36 9 6 Peak Tracking Total 11 | . 6 3 11 Tactical Retreats 5 | . 3 2 . Traps | -11 -10 -10 -10 ------- Run | Scr Mat Min Exi Traps Triggered 3 | . 3 . . Indirectly . | . . . . Trap Hack Attempts . | . . . . Triggered . | . . . . Disarmed . | . . . . Reprogrammed . | . . . . Reused . | . . . . Traps Extracted . | . . . . Installed . | . . . . Triggered . | . . . . Machines | -11 -10 -10 -10 ---------- Run | Scr Mat Min Exi Machines Disabled 11 | . 7 . 4 Max in Single Turn 7 | . 7 . 2 Machines Sabotaged . | . . . . Garrisons Compromised . | . . . . Overloaded Fab Kills . | . . . . Hacking | -11 -10 -10 -10 --------- Run | Scr Mat Min Exi Machines Accessed 9 | . 6 1 2 Terminals 5 | . 4 1 . Fabricators . | . . . . Repair Stations . | . . . . Recycling Units 2 | . 2 . . Scanalyzers . | . . . . Garrison Access . | . . . . Total Hacks 31 | . 24 5 2 Successful 20 | . 16 2 2 Failed 11 | . 8 3 . Catastrophic . | . . . . Database Lockouts . | . . . . Manual 17 | . 12 4 1 Terminals 25 | . 20 5 . Fabricators . | . . . . Repair Stations . | . . . . Recycling Units 4 | . 4 . . Scanalyzers . | . . . . Garrison Access . | . . . . Terminal Hacks 16 | . 12 2 2 Record 1 | . . . 1 Part Schematic 2 | . 2 . . Robot Analysis 2 | . 2 . . Prototype ID Bank 2 | . 2 . . Terminal Index 1 | . 1 . . Alert Level 1 | . . 1 . Unreport Threat 1 | . 1 . . Locate Traps 1 | . 1 . . Hauler Manifests 1 | . 1 . . Registered Components 1 | . 1 . . Zone Layout 2 | . 1 1 . EX-Prototype ID Bank 1 | . . . 1 Fabricator Hacks . | . . . . Repair Station Hacks . | . . . . Recycling Unit Hacks 2 | . 2 . . Report Inventory 2 | . 2 . . Scanalyzer . | . . . . Garrison Access Hacks . | . . . . Unauthorized Hacks 2 | . 2 . . Terminals . | . . . . Fabricators . | . . . . Repair Stations . | . . . . Recycling Units 2 | . 2 . . Tunnel 2 | . 2 . . Scanalyzers . | . . . . Garrison Access . | . . . . Data Cores Recovered . | . . . . Used . | . . . . Hacking Detections 6 | . 5 1 . Full Trace Events . | . . . . Feedback Events . | . . . . Feedback Blocked . | . . . . Robot Schematics Acquired . | . . . . Robots Built . | . . . . Authchips . | . . . . Time . | . . . . Total Robot Build Rating . | . . . . Part Schematics Acquired 2 | . 2 . . Parts Built . | . . . . Authchips . | . . . . Time . | . . . . Total Part Build Rating . | . . . . Parts Repaired . | . . . . Time . | . . . . Parts Recycled . | . . . . Recycled Matter . | . . . . Retrieved Matter . | . . . . Retrieved Components . | . . . . Parts Scanalyzed . | . . . . Part Schematics Acquired . | . . . . Parts Damaged . | . . . . Bothacking | -11 -10 -10 -10 ------------ Run | Scr Mat Min Exi Used RIF Installer . | . . . . Robots Hacked . | . . . . Non-combat . | . . . . Combat . | . . . . Robot Hacks Applied . | . . . . Relay Couplers Released . | . . . . Fabnet Peak Effective % . | . . . . Robots Rewired . | . . . . Allies Hacked . | . . . . Hacks Repelled . | . . . . Allies | -11 -10 -10 -10 -------- Run | Scr Mat Min Exi Total Allies 6 | . . 3 3 Largest Group 3 | . . 3 2 Highest-Rated Group 52 | . . 40 52 Highest-Rated Ally 36 | . . 16 36 Total Orders . | . . . . Ally Attacks 43 | . . 13 30 Total Damage 1131 | . . 139 992 Kills 10 | . . 3 7 Allies Corrupted . | . . . . Allies Melted . | . . . . Turrets Deployed 1 | . . . 1 Field Lobotomies 3 | . . . 3 Intel | -11 -10 -10 -10 ------- Run | Scr Mat Min Exi Robot Analysis Total 2 | . 2 . . Derelict Logs Recovered 2 | . . 2 . Drone Launches . | . . . . Drone Recoveries . | . . . . Exploration | -11 -10 -10 -10 ------------- Run | Scr Mat Min Exi Turns Passed 2657 | 5 1049 1015 588 Spaces Moved 1446 | 1 551 586 308 Core . | . . . . Treads 1292 | 1 397 586 308 Legs . | . . . . Wheels 154 | . 154 . . Hover . | . . . . Flight . | . . . . Fastest Speed 95 | 160 95 160 160 Average Speed 154 | 160 141 160 165 Slowest Speed 240 | 160 160 160 240 Overloaded Moves . | . . . . Propulsion Burnouts . | . . . . Robots Hopped . | . . . . Cave-ins Triggered . | . . . . Exploration Rate (%) 61 | 2 79 98 66 Regions Visited 3 Branch Regions 2 Pre-discovered Areas 3 | . 2 . 1 Known Exits Taken . | . . . . Unknown Exits Taken 3 | 1 1 1 . Scrap Searched 3 | . . 3 . Spaces Dug . | . . . . Terrain Destroyed 52 | . 46 6 . Melee . | . . . . Projectile . | . . . . AOE 52 | . 46 6 . Terrain Rammed . | . . . . Walls Destroyed . | . . . . Machines Disabled . | . . . . Actions | -11 -10 -10 -10 --------- Run | Scr Mat Min Exi Total 1687 | 6 689 635 357 Wait 61 | . 16 26 19 Move 1443 | . 550 585 308 Hop . | . . . . Pick Up 23 | . 14 4 5 Fast Attach 5 | . 4 1 . Attach 13 | 2 6 . 5 Detach . | . . . . Swap 16 | . 11 2 3 Drop 18 | 4 13 . 1 Fire 106 | . 75 15 16 Melee . | . . . . Ram . | . . . . Kick . | . . . . Crush 2 | . . 2 . Escape Stasis . | . . . . Rewire . | . . . . Trap . | . . . . Miscellaneous . | . . . . Route ------- -11/Scrapyard -10/Materials (discovered 3 exits: [*Mat x2] / *Min) -10/Mines (discovered 3 exits: [*Mat x2] / *Exi) -10/Exiles History --------- Turn | Location | Event 6 | -11/Scrapyard | Discovered new exit (range 0) 6 | -11/Scrapyard | Entered Materials 78 | -10/Materials | Discovered new exit (range 13) 327 | -10/Materials | Build established: Mutant 442 | -10/Materials | Discovered new exit (range 16) 668 | -10/Materials | Discovered new exit (range 3) 848 | -10/Materials | Lost 3 parts (1p1n1w) 1055 | -10/Materials | Entered Mines 1058 | -10/Mines | Core integrity fell below 50% 1198 | -10/Mines | Discovered new exit (range 12) 1528 | -10/Mines | Deemed a non-threat by the Exiles lab entrance 1530 | -10/Mines | Discovered new exit (range 5) 1662 | -10/Mines | Learned Materials non-interactive machine intel 1666 | -10/Mines | Learned Materials stockpile data 1725 | -10/Mines | Assisted by bots powering up and referring to "LRC-V3" 1907 | -10/Mines | Discovered new exit (range 3) 2070 | -10/Mines | Entered Exiles 2070 | -10/Exiles | Accompanied by 2 allies 2107 | -10/Exiles | Met 8R-AWN 2138 | -10/Exiles | Met EX-HEX 2228 | -10/Exiles | Met EX-DEC 2258 | -10/Exiles | Learned location of Zion (-7) 2287 | -10/Exiles | Met EX-BIN 2309 | -10/Exiles | Aligned with FarCom system 2311 | -10/Exiles | Given EX-Vault access code 2352 | -10/Exiles | Opened EX-Vault 2364 | -10/Exiles | Found Field Lobotomy Kit 2395 | -10/Exiles | Warned to stay clear of 0b10 Research branches 2512 | -10/Exiles | Attacked by the Exiles 2514 | -10/Exiles | Assimilated DAS Turret with FLK Orb 2525 | -10/Exiles | Allies destroyed EX-DEC 2529 | -10/Exiles | Assimilated as-46216 with FLK Orb 2532 | -10/Exiles | Assimilated as-86919 with FLK Orb 2554 | -10/Exiles | Found Deploy-a-Sentry 2557 | -10/Exiles | DAS Turret deployed 2631 | -10/Exiles | Core integrity fell below 20% 2658 | -10/Exiles | Destroyed by 8R-AWN with 8R-AWN's Boregun Last Messages --------------- 02639_ Assault Rifle destroyed. 02639_ HV Slug penetrates Earth. 02639_ Penetrated by HV Slug. 02639_ HV Slug penetrates Earth. 02641_ Penetrated by HV Slug. 02641_ HV Slug penetrates Earth. 02641_ Penetrated by HV Slug. 02641_ HV Slug penetrates Earth. 02643_ Penetrated by HV Slug. 02643_ HV Slug penetrates Earth. 02643_ Penetrated by HV Slug. 02643_ HV Slug penetrates Earth. 02646_ Penetrated by HV Slug. 02646_ HV Slug penetrates Earth. 02646_ Penetrated by HV Slug. 02650_ Assault Rifle destroyed. 02654_ HV Slug penetrates Wall. 02654_ Penetrated by HV Slug. 02657_ System corrupted: Heat flow error (+168). 02658_ Penetrated by HV Slug. Map ----- +----------------------------------------------------+ | ?????????????????????????????????????????????????? | | ?????????????????????????????????????????????????? | | ?????????????????????????????????????????????????? | | ?????????????????????????????????????????????????? | | ?????????????????????????????????????????????????? | | ?????????????????????????????????????????????????? | | ?????????????????????????????????????????????????? | | ?????????????????????????????????????????????????? | | ?????????????????????????????????????????????????? | | ?????????????????????????????????????????????????? | | ?????????????????????????????????????????????????? | | ?????????????????????????????######??????????????? | | ??????????????? ######???????#!!! "#?????????????? | | ??????????????? #""#??????# "??????????????? | | ??????????????? ??????# "#?????????????? | | ??????????????? #????## ""#????????????## | | ??????????????? #####" ""#???????????? | | ???????????????? ##" "?????????????" | | ????????????????? #"" #?????????????"" | | ??????????????????? #?????????????"" | | ?????????????????????# ##????????????"" | | ??????????????????????## "#???????????? | | ???????????????########" ###???????????" | | ???????????????# !!""""" ##??????????# | | ???????????????#! g ###"" ######???### | | ???????????????#! @ #?## ""#####X# | | ???????????????#! ##??#" | | ???????????????# !"""" "#;#???#"# | | ???????????????########## #???#### | | ????????????????????????# #??????### | | ????????????????????????# #????????### % | | ????????????????????????# #??????????## % | | ????????????????????????# #???????????## | | ????????????????????????# #????????????## %= | | ????????????????????????? ??????????????# ! | | ????????????????????????? ?????????????## =% | | ????????????????????????? ?????????????#"" % | | ????????????????????????? ?????????????#" | | ????????????????????????? ????????????#" ! | | ????????????????????????? ????????????#"""% % | | ????????????????????????? ????????????#"" | | ??????????????????????????????????????#""" % | | ??????????????????????????????????????#"" % | | ??????????????????????????????????????##"" %% | | ???????????????????????????????????????#"""" | | ???????????????????????????????????????## | | ????????????????????????????????????????#" | | ????????????????????????????????????????#"""" | | ????????????????????????????????????????#"" | | ????????????????????????????????????????#" | +----------------------------------------------------+ Best States ------------- Heat Dissipation 39 Energy Generation 10 Energy Capacity 250 Matter Stores 300 Matter Capacity 400 Sight Range 16 Terrain Scan Density 10 Utility Shielding 33 Evasion (%) 41 Armor Integrity Analysis 30 Recoil Reduction 2 Item Schematics ----------------- Hcp. Storage Unit | -10/Materials | Hacked Huge Storage Unit | -10/Materials | Hacked Robot Schematics ------------------ None Fabricated ------------ Nothing Alien Tech Used ----------------- None Achievements -------------- None Challenges ------------ None Game ------ Seed ReinforcedStructuralDatajack Manual? 0 Play Time 00:14:45 Cumulative 468.0 hours Start 2021.11.12 @ 03:24:55 End 2021.11.12 @ 12:08:14 Sessions 2 Manual Loads 0 Difficulty Rogue Special Mode None Game No. 467 Rogue 467 Adventurer 0 Explorer 0 Win Type - Total 9 Types 8/0/0/1/0/0/0/0/0 Lore% 81 Gallery% 93 Achievement% 71 Wizard Run 0 Options --------- ASCII 0 Keyboard 0 Movement Mouse Keybinds 1 Fullscreen 2 Font 24/Smallcaps Map View 76x50 Tactical HUD 1 Map Filters NONE Filters NONE Steam 1 RUN: 35e50c1b-ab05-41f2-8b54-444934dbbdb9